fUST/lending_fUST_20250925
["ID","MTS","AMOUNT","RATE_DAILY","PERIOD"]
[387686690,1758809445761,-500.0,0.00039999,31]
[387686691,1758809445771,-500.0,0.00039999,31]
[387686693,1758809445780,-500.0,0.00039999,31]
[387686696,1758809445791,-500.0,0.00039999,31]
[387686697,1758809445800,-500.0,0.00039999,31]
[387686699,1758809445809,-500.0,0.00039999,31]
[387686701,1758809445819,-500.0,0.00039999,31]
[387686703,1758809445828,-500.0,0.00039999,31]
[387686705,1758809445838,-500.0,0.00039999,31]
[387686707,1758809445847,-500.0,0.00039999,31]
[387686709,1758809445858,-500.0,0.00039999,31]
[387686711,1758809445867,-500.0,0.00039999,31]
[387686713,1758809445877,-500.0,0.00039999,31]
[387686715,1758809445887,-500.0,0.00039999,31]
[387686717,1758809445896,-500.0,0.00039999,31]
[387686719,1758809445906,-500.0,0.00039999,31]
[387686722,1758809445916,-500.0,0.00039999,31]
[387686724,1758809445926,-500.0,0.00039999,31]
[387686726,1758809445935,-500.0,0.00039999,31]
[387686727,1758809445944,-500.0,0.00039999,31]
[387686729,1758809445954,-500.0,0.00039999,31]
[387686731,1758809445964,-500.0,0.00039999,31]
[387686734,1758809445973,-500.0,0.00039999,31]
[387686736,1758809445983,-500.0,0.00039999,31]
[387686738,1758809445992,-445.11884448,0.00039999,31]
[387686739,1758809446002,-500.0,0.00039999,31]
[387686741,1758809446011,-500.0,0.00039999,31]
[387686743,1758809446021,-500.0,0.00039999,31]
[387686745,1758809446030,-500.0,0.00039999,31]
[387686747,1758809446041,-500.0,0.00039999,31]
[387686749,1758809446050,-500.0,0.00039999,31]
[387686752,1758809446060,-425.30013319,0.00039999,31]
[387686753,1758809446070,-226.97565337,0.00039999,31]
[387686755,1758809446080,-519.76115123,0.00039999,31]
[387686757,1758809446090,-500.0,0.00039999,31]
[387686759,1758809446099,-350.0,0.00039999,30]
[387686761,1758809446109,-506.24555274,0.00039999,30]
[387686763,1758809446119,-151.0,0.00039999,30]
[387686765,1758809446128,-151.0,0.00039999,30]
[387686768,1758809446138,-200.0,0.00039999,30]
[387686770,1758809446147,-17300.0,0.00039999,30]
[387686772,1758809446157,-152.16896658,0.00039999,30]
[387686774,1758809446166,-151.0,0.00039999,30]
[387686776,1758809446176,-151.0,0.00039999,30]
[387686779,1758809446185,-250.0,0.00039999,30]
[387686781,1758809446195,-500.0,0.00039999,30]
[387686783,1758809446204,-205.67214787,0.00039999,30]
[387686786,1758809446216,-782.76254592,0.0004,4]
[387686787,1758809446227,-1999884.50920496,0.0004,120]
[387686789,1758809446237,-922242.01374069,0.0004,120]
[387686791,1758809446246,-605.743639,0.0004,120]
[387686793,1758809446255,-5443.18581554,0.0004,120]
[387686795,1758809446264,-200000.0,0.0004,120]
[387686797,1758809446275,-54489.0,0.0004,120]
[387686799,1758809446284,-500.0,0.0004,120]
[387686801,1758809446294,-500.0,0.0004,2]
[387686803,1758809446305,-12286.0495709,0.0004,15]
[387686805,1758809446315,-242486.58816359,0.0004,120]
[387686812,1758809446370,-76046.46009527,0.0004,120]
[387686822,1758809446462,-480.0,0.00021792,2]
[387686824,1758809446472,-480.0,0.00022066,2]
[387686826,1758809446481,-480.0,0.0002234,2]
[387686828,1758809446491,-480.0,0.00022614,2]
[387686830,1758809446502,-480.0,0.00022888,2]
[387686832,1758809446511,-480.0,0.00023162,2]
[387686834,1758809446521,-896.03,0.00023436,2]
[387686836,1758809446531,-480.0,0.00023436,2]
[387686838,1758809446541,-896.03,0.0002371,2]
[387686840,1758809446550,-896.03,0.00023984,2]
[387686842,1758809446560,-896.03,0.00024258,2]
[387686844,1758809446569,-896.03,0.00024532,2]
[387686846,1758809446579,-896.03,0.00024806,2]
[387686848,1758809446588,-204.31485008,0.0002508,2]
[387686901,1758809447072,-480.0,0.00019325,2]
[387686904,1758809447082,-480.0,0.00019325,2]
[387686906,1758809447092,-480.0,0.00019326,2]
[387686908,1758809447101,-480.0,0.00019326,2]
[387686909,1758809447110,-480.0,0.00019326,2]
[387686911,1758809447119,-480.0,0.0001935,2]
[387686912,1758809447128,-480.0,0.00019599,2]
[387686913,1758809447137,-537.12080077,0.00019599,2]
[387686920,1758809447227,-480.0,0.000196,2]
[387686922,1758809447237,-480.0,0.000196,2]
[387686924,1758809447246,-480.0,0.000196,2]
[387686926,1758809447256,-176.76994331,0.00019873,2]
[387686928,1758809447265,-480.0,0.00019874,2]
[387686930,1758809447275,-513.99534896,0.00019874,2]
[387686932,1758809447284,-480.0,0.00019874,2]
[387686934,1758809447293,-480.0,0.00020148,2]
[387686936,1758809447303,-480.0,0.00020422,2]
[387686938,1758809447312,-249.84,0.00020696,2]
[387686940,1758809447322,-480.0,0.0002371,2]
[387686942,1758809447332,-480.0,0.00023984,2]
[387686944,1758809447341,-474.46722905,0.00024258,2]
[387686946,1758809447351,-691.71514992,0.0002508,2]
[387686948,1758809447361,-896.03,0.00025354,2]
[387686950,1758809447371,-896.07502774,0.00025628,2]
[387686952,1758809447381,-2840.23,0.00032877,10]
[387686954,1758809447391,-13386.89302255,0.0004,120]
[387687080,1758809654463,-1200.0,0.00019324,2]
[387687081,1758809654514,-300.0,0.00019324,2]
[387687082,1758809654566,-494.04610861,0.00019325,2]
[387687083,1758809654616,-480.0,0.00019325,2]
[387687084,1758809654667,-480.0,0.00019325,2]
[387687085,1758809654718,-480.0,0.00019325,2]
[387687086,1758809654772,-480.0,0.00019325,2]
[387687087,1758809654821,-480.0,0.00019325,2]
[387687088,1758809654872,-488.18590773,0.00019325,2]
[387687089,1758809664507,-210.76689889,0.00019226,2]
[387687090,1758809664566,-480.0,0.00019325,2]
[387687091,1758809664619,-480.0,0.00019325,2]
[387687092,1758809664673,-480.0,0.00019325,2]
[387687093,1758809664731,-480.0,0.00019325,2]
[387687094,1758809664799,-250.0,0.00019325,2]
[387687095,1758809664854,-500.0,0.00019325,2]
[387687096,1758809664908,-383.99935303,0.00019325,2]
[387687097,1758809664963,-500.0,0.00019325,2]
[387687098,1758809665017,-251.82109047,0.00019325,2]
[387687099,1758809665069,-458.94892069,0.00019325,2]
[387687100,1758809665121,-500.0,0.00019325,2]
[387687101,1758809665644,-48.93747384,0.00019325,2]
[387687102,1758809702649,300.0,0.00019324,2]
[387687103,1758809702788,300.0,0.00019324,2]
[387687104,1758809703370,-159.91831978,0.00019325,2]
[387687105,1758809704408,-9400.01,0.00019325,2]
[387687106,1758809714433,-1200.0,0.00019324,2]
[387687107,1758809714490,-3798.74729213,0.00019325,2]
[387687108,1758809714598,-2.51541574,0.00019325,2]
[387687109,1758809770344,163.0,0.00024,120]
[387687111,1758809814800,-300.0,0.00019324,2]
[387687112,1758809814859,-500.0,0.00019324,2]
[387687113,1758809814916,-586.84309667,0.00019324,2]
[387687114,1758809814976,-500.0,0.00019324,2]
[387687115,1758809815033,-500.0,0.00019324,2]
[387687116,1758809815093,-500.0,0.00019324,2]
[387687117,1758809815153,-650.08228528,0.00019324,2]
[387687118,1758809815213,-431.06252616,0.00019325,2]
[387687119,1758809815272,-500.0,0.00019325,2]
[387687120,1758809815329,-500.0,0.00019325,2]
[387687121,1758809815826,-64.03418378,0.00019325,2]
[387687122,1758809824579,-300.0,0.00019324,2]
[387687123,1758809824639,-435.96581622,0.00019325,2]
[387687124,1758809824699,-489.50382487,0.00019325,2]
[387687125,1758809824756,-480.0,0.00019325,2]
[387687126,1758809824813,-480.0,0.00019325,2]
[387687127,1758809824870,-480.0,0.00019325,2]
[387687128,1758809824928,-480.0,0.00019325,2]
[387687129,1758809824986,-360.6784953,0.00019325,2]
[387687130,1758809825043,-480.0,0.00019325,2]
[387687131,1758809825098,-480.0,0.00019325,2]
[387687132,1758809825163,-162.59625366,0.00019325,2]
[387687133,1758809825218,-262.5212199,0.00019325,2]
[387687134,1758809825801,-217.4787801,0.00019325,2]
[387687135,1758809864877,-1200.0,0.00019324,2]
[387687136,1758809864934,-418.81688739,0.00019324,2]
[387687137,1758809864992,-481.14795416,0.00019325,2]
[387687138,1758809865047,-480.0,0.00019325,2]
[387687139,1758809865104,-480.0,0.00019325,2]
[387687140,1758809865158,-480.0,0.00019325,2]
[387687141,1758809865213,-480.0,0.00019325,2]
[387687142,1758809865271,-480.0,0.00019325,2]
[387687143,1758809865327,-480.0,0.00019325,2]
[387687144,1758809865810,-40.0803169,0.00019325,2]
[387687145,1758809874219,-439.9196831,0.00019325,2]
[387687146,1758809874274,-480.0,0.00019325,2]
[387687147,1758809874333,-480.0,0.00019325,2]
[387687148,1758809874387,-480.0,0.00019325,2]
[387687149,1758809874444,-480.0,0.00019325,2]
[387687150,1758809874502,-480.0,0.00019325,2]
[387687151,1758809874560,-480.0,0.00019325,2]
[387687152,1758809874620,-452.04966293,0.00019325,2]
[387687153,1758809874676,-480.0,0.00019325,2]
[387687154,1758809874733,-480.0,0.00019325,2]
[387687155,1758809874789,-56.07130794,0.00019325,2]
[387687156,1758809875281,-423.92869206,0.00019325,2]
[387687157,1758809884693,-2182.91186408,0.00019325,2]
[387687158,1758809884753,-480.0,0.00019325,2]
[387687159,1758809884815,-480.0,0.00019325,2]
[387687160,1758809884878,-480.0,0.00019325,2]
[387687161,1758809884938,-274.61048347,0.00019325,2]
[387687162,1758809884995,-301.90206563,0.00019325,2]
[387687163,1758809885054,-480.0,0.00019325,2]
[387687164,1758809885113,-161.16117364,0.00019325,2]
[387687165,1758809885357,-318.83882636,0.00019325,2]
[387687166,1758809885415,-480.0,0.00019325,2]
[387687167,1758809885474,-509.2379216,0.00019325,2]
[387687168,1758809885534,-480.0,0.00019325,2]
[387687169,1758809885592,-480.0,0.00019325,2]
[387687170,1758809885649,-480.0,0.00019325,2]
[387687171,1758809885708,-340.01463361,0.00019325,2]
[387687172,1758809885769,-480.0,0.00019325,2]
[387687173,1758809885828,-480.0,0.00019325,2]
[387687174,1758809885892,-480.0,0.00019325,2]
[387687175,1758809885951,-463.82723686,0.00019325,2]
[387687176,1758809886749,-16.17276314,0.00019325,2]
[387687177,1758809886759,-186.73847248,0.00019325,2]
[387687178,1758809886769,-161.33827548,0.00019325,2]
[387687179,1758809894688,-318.66172452,0.00019325,2]
[387687180,1758809894746,-480.0,0.00019325,2]
[387687181,1758809894805,-480.0,0.00019325,2]
[387687182,1758809894858,-480.0,0.00019325,2]
[387687183,1758809894915,-480.0,0.00019325,2]
[387687184,1758809894971,-480.42703325,0.00019325,2]
[387687185,1758809895031,-488.48632724,0.00019325,2]
[387687186,1758809895088,-628.32153067,0.00019325,2]
[387687187,1758809895145,-494.82086472,0.00019325,2]
[387687188,1758809895204,-480.0,0.00019325,2]
[387687189,1758809895557,-480.0,0.00019325,2]
[387687190,1758809895614,-480.0,0.00019325,2]
[387687191,1758809895671,-480.0,0.00019325,2]
[387687192,1758809895725,-481.12666495,0.00019325,2]
[387687193,1758809895779,-480.0,0.00019325,2]
[387687194,1758809895835,-480.0,0.00019325,2]
[387687195,1758809895891,-480.0,0.00019325,2]
[387687196,1758809895946,-480.0,0.00019325,2]
[387687197,1758809895998,-462.58156036,0.00019325,2]
[387687198,1758809896054,-480.0,0.00019325,2]
[387687199,1758809896240,-480.0,0.00019325,2]
[387687200,1758809896292,-480.5920747,0.00019325,2]
[387687201,1758809896347,-480.0,0.00019325,2]
[387687202,1758809896402,-480.0,0.00019325,2]
[387687203,1758809896458,-480.0,0.00019325,2]
[387687204,1758809896511,-481.7001455,0.00019325,2]
[387687205,1758809896568,-480.0,0.00019325,2]
[387687206,1758809896624,-480.0,0.00019325,2]
[387687207,1758809896679,-480.0,0.00019325,2]
[387687208,1758809896734,-480.0,0.00019325,2]
[387687209,1758809897878,-398.82028929,0.00019325,2]
[387687210,1758809897921,-21.90297505,0.00019325,2]
[387687211,1758809897931,-458.09702495,0.00019325,2]
[387687212,1758809897972,-21.90297505,0.00019325,2]
[387687213,1758809897981,-373.52258455,0.00019325,2]
[387687214,1758809898036,-106.47741545,0.00019325,2]
[387687215,1758809898060,-276.13554836,0.00019325,2]
[387687216,1758809904712,-203.86445164,0.00019325,2]
[387687217,1758809904769,-232.3399632,0.00019325,2]
[387687218,1758809904824,-480.0,0.00019325,2]
[387687219,1758809904879,-480.0,0.00019325,2]
[387687220,1758809904938,-480.0,0.00019325,2]
[387687221,1758809904999,-480.0,0.00019325,2]
[387687222,1758809905055,-480.0,0.00019325,2]
[387687223,1758809905115,-480.0,0.00019325,2]
[387687224,1758809905174,-480.0,0.00019325,2]
[387687225,1758809905231,-480.0,0.00019325,2]
[387687226,1758809905288,-480.0,0.00019325,2]
[387687227,1758809905347,-7.60117032,0.00019325,2]
[387687228,1758809905648,-472.39882968,0.00019325,2]
[387687229,1758809905712,-480.0,0.00019325,2]
[387687230,1758809905773,-480.0,0.00019325,2]
[387687231,1758809905832,-480.0,0.00019325,2]
[387687232,1758809905890,-480.0,0.00019325,2]
[387687233,1758809905945,-480.0,0.00019325,2]
[387687234,1758809906000,-485.00094374,0.00019325,2]
[387687235,1758809906056,-483.63007365,0.00019325,2]
[387687236,1758809906110,-363.66748593,0.00019325,2]
[387687237,1758809906165,-547.88531598,0.00019325,2]
[387687238,1758809906221,-14.84470204,0.00019325,2]
[387687239,1758809906448,-465.15529796,0.00019325,2]
[387687240,1758809906501,-480.0,0.00019325,2]
[387687241,1758809906555,-331.10332801,0.00019325,2]
[387687242,1758809906610,-480.0,0.00019325,2]
[387687243,1758809906662,-480.0,0.00019325,2]
[387687244,1758809906718,-480.0,0.00019325,2]
[387687245,1758809906774,-485.86048733,0.00019325,2]
[387687246,1758809906832,-480.0,0.00019325,2]
[387687247,1758809906888,-480.0,0.00019325,2]
[387687248,1758809906943,-480.0,0.00019325,2]
[387687249,1758809906997,-235.7717734,0.00019325,2]
[387687250,1758809908244,-244.2282266,0.00019325,2]
[387687251,1758809908254,-5.00094374,0.00019326,2]
[387687252,1758809908299,-471.02366561,0.00019326,2]
[387687253,1758809908308,-8.97633439,0.00019326,2]
[387687254,1758809908348,-471.02366561,0.00019326,2]
[387687255,1758809908359,-8.97633439,0.00019326,2]
[387687257,1758809925060,-480.0,0.00019325,2]
[387687258,1758809925205,-480.0,0.00019325,2]
[387687259,1758809925258,-293.30276412,0.00019325,2]
[387687260,1758809925316,-238.8980317,0.00019325,2]
[387687262,1758809925369,-480.0,0.00019325,2]
[387687264,1758809925423,-480.0,0.00019325,2]
[387687265,1758809925476,-480.0,0.00019325,2]
[387687266,1758809925526,-480.0,0.00019325,2]
[387687267,1758809925577,-480.0,0.00019325,2]
[387687268,1758809925631,-486.12692028,0.00019325,2]
[387687269,1758809925683,-480.0,0.00019325,2]
[387687270,1758809926023,-483.22635894,0.00019325,2]
[387687271,1758809926076,-480.0,0.00019325,2]
[387687272,1758809926129,-471.02366561,0.00019326,2]
[387687273,1758809926179,-480.0,0.00019326,2]
[387687274,1758809926230,-480.0,0.00019326,2]
[387687275,1758809926280,-547.20513083,0.00019326,2]
[387687276,1758809926330,-480.0,0.00019326,2]
[387687277,1758809926384,-480.0,0.00019326,2]
[387687278,1758809926435,-480.0,0.00019326,2]
[387687279,1758809926488,-480.0,0.00019326,2]
[387687280,1758809927161,-292.33090219,0.00019326,2]
[387687281,1758809927202,-187.66909781,0.00019326,2]
[387687282,1758809927211,-89.43059143,0.00019326,2]
[387687296,1758810184695,1000.0,0.00018325,2]
[387687323,1758810369891,150.0,0.00023182,30]
[387687325,1758810441714,150.0,0.00023248,30]
[387687329,1758810511682,150.0,0.00023614,30]
[387687411,1758810632001,-176.55634929,0.00019273,2]
[387687412,1758810632010,-451.48619082,0.000193,2]
[387687414,1758810632022,-48.51380918,0.000193,2]
[387687416,1758810632032,-1200.0,0.0001932,2]
[387687418,1758810632041,-582.96223265,0.00019321,2]
[387687421,1758810632053,-617.03776735,0.00019321,2]
[387687423,1758810632062,-300.0,0.00019321,2]
[387687425,1758810632071,-300.0,0.00019321,2]
[387687427,1758810632081,-300.0,0.00019321,2]
[387687429,1758810632090,-300.0,0.00019321,2]
[387687431,1758810632099,-300.0,0.00019321,2]
[387687432,1758810632109,-3316.41598378,0.00019322,2]
[387687434,1758810632118,-482.49026979,0.00019323,2]
[387687436,1758810632128,-480.0,0.00019323,2]
[387687438,1758810632137,-480.0,0.00019323,2]
[387687441,1758810632147,-286.2542386,0.00019323,2]
[387687444,1758810632156,-480.0,0.00019323,2]
[387687447,1758810632165,-480.0,0.00019323,2]
[387687449,1758810632174,-273.55474109,0.00019323,2]
[387687452,1758810632184,-480.0,0.00019323,2]
[387687456,1758810632193,-480.0,0.00019323,2]
[387687458,1758810632203,-480.0,0.00019323,2]
[387687460,1758810632212,-480.0,0.00019323,2]
[387687461,1758810632221,-480.0,0.00019323,2]
[387687463,1758810632231,-480.0,0.00019323,2]
[387687465,1758810632241,-486.46329643,0.00019323,2]
[387687467,1758810632250,-480.0,0.00019323,2]
[387687469,1758810632260,-480.0,0.00019323,2]
[387687472,1758810632270,-480.0,0.00019323,2]
[387687474,1758810632279,-480.0,0.00019323,2]
[387687476,1758810632288,-480.0,0.00019323,2]
[387687478,1758810632298,-480.0,0.00019323,2]
[387687479,1758810632307,-500.0,0.00019323,2]
[387687481,1758810632317,-480.0,0.00019324,2]
[387687484,1758810632327,-480.0,0.00019324,2]
[387687486,1758810632336,-480.0,0.00019324,2]
[387687488,1758810632345,-480.0,0.00019324,2]
[387687490,1758810632354,-496.00666099,0.00019324,2]
[387687492,1758810632364,-480.0,0.00019324,2]
[387687493,1758810632373,-480.0,0.00019324,2]
[387687496,1758810632383,-480.0,0.00019324,2]
[387687498,1758810632392,-480.0,0.00019324,2]
[387687500,1758810632401,-480.0,0.00019324,2]
[387687502,1758810632411,-480.0,0.00019324,2]
[387687504,1758810632420,-480.0,0.00019324,2]
[387687506,1758810632430,-480.0,0.00019324,2]
[387687508,1758810632439,-480.0,0.00019324,2]
[387687510,1758810632450,-480.0,0.00019324,2]
[387687512,1758810632460,-480.0,0.00019324,2]
[387687514,1758810632469,-480.0,0.00019324,2]
[387687516,1758810632478,-480.0,0.00019324,2]
[387687518,1758810632488,-155.0,0.00019324,2]
[387687520,1758810632497,-480.0,0.00019324,2]
[387687522,1758810632507,-480.0,0.00019324,2]
[387687524,1758810632516,-480.0,0.00019324,2]
[387687526,1758810632525,-480.0,0.00019324,2]
[387687528,1758810632535,-480.0,0.00019324,2]
[387687529,1758810632544,-480.0,0.00019324,2]
[387687532,1758810632553,-480.0,0.00019324,2]
[387687534,1758810632563,-480.0,0.00019324,2]
[387687543,1758810632669,-480.0,0.00019324,2]
[387687545,1758810632678,-480.0,0.00019324,2]
[387687547,1758810632688,-480.0,0.00019324,2]
[387687549,1758810632702,-480.0,0.00019324,2]
[387687551,1758810632712,-480.0,0.00019324,2]
[387687553,1758810632721,-480.0,0.00019324,2]
[387687555,1758810632731,-509.14,0.00019324,2]
[387687557,1758810632741,-356.99999256,0.00019324,2]
[387687559,1758810632751,-500.0,0.00019324,2]
[387687561,1758810632760,-500.0,0.00019324,2]
[387687563,1758810632770,-500.0,0.00019324,2]
[387687565,1758810632780,-500.0,0.00019324,2]
[387687567,1758810632789,-500.0,0.00019324,2]
[387687569,1758810632802,-500.0,0.00019324,2]
[387687571,1758810632812,-500.0,0.00019324,2]
[387687573,1758810632821,-500.0,0.00019324,2]
[387687575,1758810632831,-500.0,0.00019324,2]
[387687577,1758810632841,-500.0,0.00019324,2]
[387687579,1758810632850,-586.72064761,0.00019324,2]
[387687581,1758810632860,-480.0,0.00019324,2]
[387687583,1758810632870,-480.0,0.00019324,2]
[387687585,1758810632879,-480.0,0.00019324,2]
[387687587,1758810632888,-452.31096039,0.00019324,2]
[387687589,1758810632897,-500.0,0.00019324,2]
[387687591,1758810632907,-500.0,0.00019324,2]
[387687594,1758810632916,-500.0,0.00019324,2]
[387687595,1758810632926,-500.0,0.00019324,2]
[387687597,1758810632936,-210.70445333,0.00019324,2]
[387687600,1758810632946,-480.0,0.00019324,2]
[387687602,1758810632956,-480.0,0.00019324,2]
[387687604,1758810632965,-486.0072384,0.00019324,2]
[387687606,1758810632974,-480.0,0.00019324,2]
[387687608,1758810632983,-480.0,0.00019324,2]
[387687610,1758810632993,-480.0,0.00019324,2]
[387687612,1758810633002,-480.0,0.00019324,2]
[387687614,1758810633012,-480.0,0.00019324,2]
[387687615,1758810633021,-480.0,0.00019324,2]
[387687617,1758810633031,-480.0,0.00019324,2]
[387687620,1758810633042,-480.0,0.00019324,2]
[387687622,1758810633052,-480.0,0.00019324,2]
[387687624,1758810633062,-480.0,0.00019324,2]
[387687626,1758810633071,-474.84239563,0.00019325,2]
[387687628,1758810633081,-480.0,0.00019325,2]
[387687630,1758810633091,-265.61777111,0.00019325,2]
[387687632,1758810633101,-480.0,0.00019325,2]
[387687634,1758810633111,-480.0,0.00019325,2]
[387687636,1758810633121,-492.12414922,0.00019325,2]
[387687638,1758810633131,-480.0,0.00019325,2]
[387687640,1758810633140,-211.90391677,0.00019325,2]
[387687642,1758810633150,-480.0,0.00019325,2]
[387687644,1758810633159,-480.0,0.00019325,2]
[387687646,1758810633169,-480.0,0.00019325,2]
[387687648,1758810633178,-291.45560762,0.00019325,2]
[387687650,1758810633188,-502.95271899,0.00019325,2]
[387687652,1758810633197,-483.28956828,0.00019325,2]
[387687654,1758810633207,-480.0,0.00019325,2]
[387687656,1758810633216,-480.0,0.00019325,2]
[387687658,1758810633225,-480.0,0.00019325,2]
[387687660,1758810633236,-480.0,0.00019325,2]
[387687662,1758810633246,-480.0,0.00019325,2]
[387687664,1758810633255,-480.0,0.00019325,2]
[387687666,1758810633264,-480.0,0.00019325,2]
[387687668,1758810633274,-501.60248268,0.00019325,2]
[387687670,1758810633283,-366.53862063,0.00019325,2]
[387687671,1758810633293,-484.05635111,0.00019325,2]
[387687673,1758810633302,-480.0,0.00019325,2]
[387687675,1758810633311,-480.0,0.00019325,2]
[387687677,1758810633321,-480.0,0.00019325,2]
[387687679,1758810633331,-480.0,0.00019325,2]
[387687681,1758810633341,-480.0,0.00019325,2]
[387687683,1758810633350,-480.0,0.00019325,2]
[387687685,1758810633359,-480.0,0.00019325,2]
[387687687,1758810633369,-480.0,0.00019325,2]
[387687689,1758810633378,-480.0,0.00019325,2]
[387687691,1758810633387,-480.0,0.00019325,2]
[387687693,1758810633397,-480.0,0.00019325,2]
[387687695,1758810633407,-480.0,0.00019325,2]
[387687697,1758810633417,-480.0,0.00019325,2]
[387687699,1758810633427,-480.0,0.00019325,2]
[387687701,1758810633436,-480.0,0.00019325,2]
[387687704,1758810633447,-480.0,0.00019325,2]
[387687706,1758810633456,-480.0,0.00019325,2]
[387687708,1758810633466,-480.0,0.00019325,2]
[387687709,1758810633475,-481.50157464,0.00019325,2]
[387687712,1758810633485,-480.0,0.00019325,2]
[387687714,1758810633494,-480.0,0.00019325,2]
[387687715,1758810633504,-625.93806075,0.00019325,2]
[387687717,1758810633514,-480.0,0.00019325,2]
[387687719,1758810633524,-500.0,0.00019325,2]
[387687721,1758810633533,-480.0,0.00019325,2]
[387687723,1758810633544,-500.0,0.00019325,2]
[387687724,1758810633553,-500.0,0.00019325,2]
[387687727,1758810633563,-480.0,0.00019325,2]
[387687729,1758810633572,-510.19975871,0.00019325,2]
[387687730,1758810633582,-480.0,0.00019325,2]
[387687733,1758810633592,-480.0,0.00019325,2]
[387687735,1758810633602,-485.44816988,0.00019325,2]
[387687736,1758810633611,-500.0,0.00019325,2]
[387687738,1758810633621,-500.0,0.00019325,2]
[387687741,1758810633632,-500.0,0.00019325,2]
[387687743,1758810633642,-480.0,0.00019325,2]
[387687745,1758810633652,-480.0,0.00019325,2]
[387687747,1758810633662,-480.0,0.00019325,2]
[387687749,1758810633672,-480.0,0.00019325,2]
[387687750,1758810633682,-480.0,0.00019325,2]
[387687752,1758810633694,-480.0,0.00019325,2]
[387687755,1758810633705,-480.0,0.00019325,2]
[387687757,1758810633715,-480.0,0.00019325,2]
[387687759,1758810633725,-480.0,0.00019325,2]
[387687761,1758810633736,-480.0,0.00019325,2]
[387687763,1758810633746,-480.0,0.00019325,2]
[387687765,1758810633756,-480.0,0.00019325,2]
[387687767,1758810633766,-525.03806858,0.00019325,2]
[387687769,1758810633776,-480.0,0.00019325,2]
[387687771,1758810633787,-480.0,0.00019325,2]
[387687772,1758810633798,-480.0,0.00019325,2]
[387687774,1758810633809,-480.0,0.00019325,2]
[387687776,1758810633818,-480.0,0.00019325,2]
[387687778,1758810633829,-480.0,0.00019325,2]
[387687780,1758810633840,-480.0,0.00019325,2]
[387687782,1758810633850,-480.0,0.00019325,2]
[387687784,1758810633861,-480.0,0.00019325,2]
[387687787,1758810633871,-480.0,0.00019325,2]
[387687789,1758810633881,-480.0,0.00019325,2]
[387687791,1758810633891,-480.0,0.00019325,2]
[387687792,1758810633900,-480.0,0.00019325,2]
[387687795,1758810633909,-467.29864486,0.00019325,2]
[387687796,1758810633919,-480.0,0.00019325,2]
[387687797,1758810633928,-480.0,0.00019325,2]
[387687798,1758810633938,-480.0,0.00019325,2]
[387687799,1758810633948,-480.0,0.00019325,2]
[387687800,1758810633958,-480.0,0.00019325,2]
[387687801,1758810633967,-480.0,0.00019325,2]
[387687802,1758810633976,-480.0,0.00019325,2]
[387687803,1758810633985,-480.0,0.00019325,2]
[387687804,1758810633995,-225.12033315,0.00019325,2]
[387687805,1758810634004,-398.19971122,0.00019325,2]
[387687806,1758810634014,-480.0,0.00019325,2]